Cogmind - Beta 13 @@@ ROGUE MODE // 2024.07.07 @ 13:30:30 Player: Tereza Result: Destroyed by G-50 Soldier with Heavy Laser Performance ------------- Evolutions (3) 1500 Regions Visited (9) 1800 Robots Destroyed (61) 305 Value Destroyed (1738) 1738 Prototype IDs (2) 40 Alien Tech Used (0) 0 Bonus (300) 300 TOTAL SCORE: 5683 Bonus ------- Aligned with FarCom 300 Cogmind --------- Core Integrity 0/700 Matter 61/400 Energy 77/100 System Corruption 15% Temperature Cool (29) Movement Treading (250) Ox1 Location -7/Lower Caves Parts ------- > --- POWER (1) -------- (None) > --- PROPULSION (4) --- Armored Treads > --- UTILITY (6) ------ Large Storage Unit Medium Matter Pod Microactuators > --- WEAPON (2) ------- Wave Gun Mining Claw > --- INVENTORY (15) --- Light Ion Engine Peak State ------------ > --- POWER ------------ Light Nuclear Core > --- PROPULSION ------- Armored Treads Armored Treads Armored Treads Armored Treads > --- UTILITY ---------- Large Storage Unit Trap Scanner Advanced Visual Processing Unit Improved Medium Armor Plating Hacking Suite Trap Reconfigurator > --- WEAPON ----------- Field Laser Improved Grenade Launcher > --- INVENTORY -------- Light Ion Engine Light Ion Engine Armored Treads Armored Treads Armored Treads Medium Matter Pod Improved Terrain Scan Processor Matter Filter Microactuators Improved Light Armor Plating Heavy Assault Rifle Grenade Launcher Improved Grenade Launcher Mining Claw [Rating: 47] Favorites ----------- Power Ion Engine Engine Ion Engine Power Core Light Nuclear Core Propulsion Armored Treads Treads Armored Treads Wheel Wheel Utility Small Storage Unit Device Trap Reconfigurator Storage Small Storage Unit Processor Advanced Visual Processing Unit Hackware Hacking Suite Protection Improved Medium Armor Plating Weapon Mining Claw Energy Gun Field Laser Energy Cannon EM Pulse Cannon Ballistic Gun Heavy Assault Rifle Launcher Improved Grenade Launcher Slashing Weapon Mining Claw Build | -11 -10 -10 -9 -9 -9 -8 -8 -7 -7 ------- Run | Yrd Mat Min Mat Min Exi Min Mat Fac Low Slots Evolved 6 | . . . 2 . . . 2 2 . Power . | . . . . . . . . . . Propulsion 2 | . . . . . . . 1 1 . Utility 4 | . . . 2 . . . 1 1 . Weapon . | . . . . . . . . . . Parts Attached 82 | 6 . . 14 4 2 7 12 22 15 Power 9 | 1 . . 1 . 1 . . 5 1 Engine 8 | 1 . . 1 . 1 . . 4 1 Core 1 | . . . . . . . . 1 . Reactor . | . . . . . . . . . . Propulsion 19 | 2 . . 3 3 . 2 3 3 3 Treads 13 | . . . 3 2 . . 3 2 3 Leg . | . . . . . . . . . . Wheel 6 | 2 . . . 1 . 2 . 1 . Hover . | . . . . . . . . . . Flight . | . . . . . . . . . . Utility 27 | 1 . . 5 . 1 . 7 8 5 Device 10 | . . . 2 . 1 . 2 3 2 Storage 9 | 1 . . 3 . . . 2 2 1 Processor 4 | . . . . . . . 1 1 2 Hackware 1 | . . . . . . . 1 . . Protection 3 | . . . . . . . 1 2 . Artifact . | . . . . . . . . . . Weapon 27 | 2 . . 5 1 . 5 2 6 6 Energy Gun 6 | 1 . . 1 . . . 1 2 1 Energy Cannon 1 | . . . . . . 1 . . . Ballistic Gun 11 | 1 . . 4 . . 3 . 2 1 Ballistic Cannon . | . . . . . . . . . . Launcher 6 | . . . . . . 1 . 2 3 Special Weapon . | . . . . . . . . . . Impact Weapon . | . . . . . . . . . . Slashing Weapon 3 | . . . . 1 . . 1 . 1 Piercing Weapon . | . . . . . . . . . . Special Melee Weapon . | . . . . . . . . . . Unidentified Prototypes 2 | . . . . . 2 . . . . Parts Lost 41 | . . . 1 10 . . . 13 17 Power 7 | . . . . 1 . . . 4 2 Propulsion 10 | . . . . 4 . . . 2 4 Utility 14 | . . . . 3 . . . 5 6 Weapon 10 | . . . 1 2 . . . 2 5 Highest Loss Streak 14 | . . . 1 7 . . . 8 14 To Critical Strikes 1 | . . . 1 . . . . . . Average Slot Usage (%) 68 | . 85 85 96 49 32 72 84 90 55 Engine 6 | . 14 14 11 2 5 11 9 4 5 Treads 11 | . . . 18 12 . . 5 25 9 Wheel 4 | . 28 28 3 . . 17 14 . 1 Device 11 | . . . 19 3 4 11 17 18 8 Storage 11 | . 14 14 20 18 11 11 9 7 11 Hackware 1 | . . . . . . . 2 5 . Protection 2 | . . . . . . . 7 6 2 Energy Gun 4 | . 14 14 8 . . . 7 6 6 Ballistic Gun 4 | . 14 14 13 3 . 12 5 1 . Slashing Weapon 5 | . . . . 8 11 . 3 3 4 Naked Turns . | . . . . . . . . . . Heaviest Build 96 | 12 12 12 22 22 13 20 96 44 39 Greatest Support 80 | 26 26 26 40 40 3 26 60 80 40 Greatest Overweight (x) 4 | 1 . . . 2 4 4 4 3 3 Average Overweight (x) 1 | . . . . . 2 . . . 1 Largest Inventory Capacity 25 | 8 8 8 25 8 8 8 25 15 15 Average Capacity 10 | 7 8 8 8 8 8 8 13 15 15 Most Carried 18 | 8 8 8 9 8 6 8 18 15 15 Average Carried 9 | 4 7 7 7 6 5 7 9 14 6 Final Capacity 15 | 8 8 8 8 8 8 8 15 15 15 Final Carried 15 | 6 8 8 8 6 5 8 14 15 1 Class Distribution -------------------- 89% | Mutant 7% | Scavenger-Mutant Dominant Class ---------------- Mutant | -10/Materials Mutant | -10/Mines Scavenger-Mutant | -9/Materials Mutant | -9/Mines Mutant | -9/Exiles Mutant | -8/Mines Mutant | -8/Materials Mutant | -7/Factory Mutant | -7/Lower Caves Resources | -11 -10 -10 -9 -9 -9 -8 -8 -7 -7 ----------- Run | Yrd Mat Min Mat Min Exi Min Mat Fac Low Matter Collected 1265 | 178 102 . 246 86 . 118 . 394 141 Remotely 288 | . . . . . . . . 239 49 Salvage Created 1793 | . 102 . 444 52 . 23 . 973 199 Parts 114 | . 9 . 28 . . 6 . 66 5 Haulers Intercepted . | . . . . . . . . . . Recyclers Shooed 3 | . . . . . . . . 3 . Parts Field Recycled . | . . . . . . . . . . Retrieved Matter . | . . . . . . . . . . Parts Self-Destructed 5 | . . . . . . . . . 5 Prevented . | . . . . . . . . . . Kills | -11 -10 -10 -9 -9 -9 -8 -8 -7 -7 ------- Run | Yrd Mat Min Mat Min Exi Min Mat Fac Low Combat Hostiles Destroyed 46 | . 4 . 11 4 . 3 . 15 9 Melee 3 | . . . . 3 . . . . . Guns 23 | . 4 . 11 1 . 1 . 4 2 AOE 19 | . . . . . . 2 . 11 6 Classes Destroyed 12 | . 2 . 3 1 . . . 5 1 Worker 3 | . . . . . . . . 3 . Builder 6 | . . . . . . . . 6 . Tunneler 1 | . . . . . . . . 1 . Recycler 6 | . . . . . . . . 6 . Watcher 3 | . . . 1 . . . . 2 . Swarmer 11 | . 3 . 4 . . 3 . . 1 Grunt 19 | . 1 . 2 . . . . 12 4 Brawler 3 | . . . . . . . . . 3 Duelist 2 | . . . 1 . . . . 1 . Sentry 5 | . . . 4 . . . . . 1 Programmer 2 | . . . . . . . . 2 . Assembled 4 | . . . . 4 . . . . . Best Kill Streak 19 | . 3 . 4 1 . 3 . 19 5 Combat Bots Only 6 | . 3 . 4 1 . 3 . 6 5 Max Kills in Single Turn 4 | . 1 . 2 1 . 2 . 4 1 Gunslinging 1 | . . . 1 . . . . . . Exploded 3 | . . . . . . 2 . 3 1 Melee 1 | . . . . 1 . . . . . Uniques/NPCs Destroyed . | . . . . . . . . . . Combat | -11 -10 -10 -9 -9 -9 -8 -8 -7 -7 -------- Run | Yrd Mat Min Mat Min Exi Min Mat Fac Low Hostile Shots Fired 422 | . 20 . 41 52 . 10 . 165 134 Missed 95 | . 5 . 7 2 . 1 . 46 34 Damage Taken 6219 | . 129 . 473 887 . 87 . 2352 2291 Core 1101 | . 39 . 97 225 . 40 . 192 508 Absorbed by Shields . | . . . . . . . . . . Core Remaining (%) 73 | 100 . 84 . . . 9 100 . . Volleys Fired 131 | . 10 . 25 10 . 2 . 60 24 Largest 2 | . 2 . 2 2 . 1 . 2 2 Hottest 116 | . 60 . 79 46 . 30 . 101 116 Shots Fired 212 | . 20 . 49 13 . 2 . 101 27 Gun 184 | . 20 . 49 13 . 1 . 82 19 Cannon . | . . . . . . . . . . Launcher 28 | . . . . . . 1 . 19 8 Special . | . . . . . . . . . . Kinetic 99 | . 10 . 33 13 . 1 . 41 1 Thermal 73 | . . . 14 . . . . 41 18 Explosive 28 | . . . . . . 1 . 19 8 Electromagnetic 12 | . 10 . 2 . . . . . . Robot Hit Streak 15 | . 3 . 9 5 . 7 . 15 10 Robot Miss Streak 3 | . 2 . 2 2 . . . 3 3 Penetration Max . | . . . . . . . . . . Secondary Targets 1 | . . . 1 . . . . . . Max Gunslinging Chain 1 | . . . 1 . . . . . . Shots Hit Robots 157 | . 11 . 32 17 . 2 . 72 23 Core Hits 114 | . 5 . 18 6 . 3 . 56 26 Critical Kills 1 | . . . 1 . . . . . . Critical Parts Destroyed . | . . . . . . . . . . Critical Strikes 4 | . . . 2 . . . . 1 1 Burn 3 | . . . 1 . . . . 1 1 Destroy 1 | . . . 1 . . . . . . Melee Attacks 27 | . . . . 17 . . 2 6 2 Impact . | . . . . . . . . . . Slashing 27 | . . . . 17 . . 2 6 2 Piercing . | . . . . . . . . . . Sneak Attacks . | . . . . . . . . . . Combat Hostiles . | . . . . . . . . . . Follow-up Attacks . | . . . . . . . . . . Damage Inflicted 5972 | . 137 . 471 393 . 127 . 3236 1608 Guns 2131 | . 137 . 471 134 . 9 . 999 381 Cannons . | . . . . . . . . . . Explosions 3582 | . . . . . . 118 . 2237 1227 Melee 259 | . . . . 259 . . . . . Ramming . | . . . . . . . . . . Kinetic 931 | . 61 . 303 134 . 9 . 410 14 Thermal 1102 | . . . 146 . . . . 589 367 Explosive 3582 | . . . . . . 118 . 2237 1227 Electromagnetic 98 | . 76 . 22 . . . . . . Impact . | . . . . . . . . . . Slashing 259 | . . . . 259 . . . . . Piercing . | . . . . . . . . . . Highest Corruption 15 | . . . . . . . 2 7 15 Average Corruption 6 | . . . . . . . 2 5 12 Corruption Purged . | . . . . . . . . . . Corruption Blocked . | . . . . . . . . . . Effects 33 | . . . . . . . 8 11 14 Message Errors 7 | . . . . . . . 2 3 2 Matter Fused 8 | . . . . . . . 2 2 4 Heat Flow Errors 4 | . . . . . . . . 1 3 Energy Discharges 4 | . . . . . . . 2 1 1 Parts Fused 1 | . . . . . . . . . 1 Data Loss (minor) 2 | . . . . . . . 1 . 1 Data Loss (major) 5 | . . . . . . . 1 3 1 Alerts 1 | . . . . . . . . 1 . Weapon Failures 1 | . . . . . . . . . 1 Overload Shots . | . . . . . . . . . . Overflow Damage 159 | . . . . 14 . 5 . 120 20 Projectiles . | . . . . . . . . . . Explosions 145 | . . . . . . 5 . 120 20 Melee 14 | . . . . 14 . . . . . Knockbacks . | . . . . . . . . . . Impact . | . . . . . . . . . . Kinetic . | . . . . . . . . . . Secondary . | . . . . . . . . . . Self-Inflicted Damage 536 | . . . . . . 23 . 314 199 Shots 15 | . . . . . . 1 . 6 8 Rammed . | . . . . . . . . . . Targets Rammed . | . . . . . . . . . . Kicked . | . . . . . . . . . . Crushed . | . . . . . . . . . . Highest Temperature 252 | . 18 . 2 . . . . 244 252 Average Temperature 68 | . 13 . 2 . . . . 73 70 Received Heat Transfer 1509 | . 18 . 84 . . . . 669 738 Siege Activations . | . . . . . . . . . . Robots Corrupted . | . . . . . . . . . . Combat Hostiles . | . . . . . . . . . . Parts Fried . | . . . . . . . . . . Impact Corruptions . | . . . . . . . . . . Robots Melted 1 | . . . . . . . . . 1 Combat Hostiles 1 | . . . . . . . . . 1 Parts Melted 3 | . . . 1 . . . . 1 1 Heat Transferred 2445 | . . . 444 . . . . 1295 706 Parts Sabotaged . | . . . . . . . . . . Parts Stolen . | . . . . . . . . . . Parts Stripped . | . . . . . . . . . . Power Chain Reactions . | . . . . . . . . . . Alert | -11 -10 -10 -9 -9 -9 -8 -8 -7 -7 ------- Run | Yrd Mat Min Mat Min Exi Min Mat Fac Low Peak Influence 380 | . 139 54 189 73 . 82 49 380 . Initial 73 | . . 54 20 73 . . 31 . . Average 62 | . 87 54 80 16 . 80 32 73 . Maximum Alert Level 1 | . . . . . . . . 1 . Low Security (%) 91 | 100 100 100 100 100 . 100 100 80 . Level 1 8 | . . . . . . . . 19 . Level 2 . | . . . . . . . . . . Level 3 . | . . . . . . . . . . Level 4 . | . . . . . . . . . . Level 5 . | . . . . . . . . . . High Security . | . . . . . . . . . . Max Security . | . . . . . . . . . . Squads Dispatched 8 | . 1 . 1 . . . . 6 . Investigation 2 | . . . . . . . . 2 . Extermination 2 | . . . . . . . . 2 . Reinforcement 4 | . 1 . 1 . . . . 2 . Assault . | . . . . . . . . . . Garrison . | . . . . . . . . . . Intercept . | . . . . . . . . . . Searches Triggered . | . . . . . . . . . . Construction Impeded 1 | . . . . . . . . 1 . Haulers Reinforced 1 | . . . . . . . . 1 . Active Scanning Responses . | . . . . . . . . . . Cargo Convoy Interrupts . | . . . . . . . . . . Stealth | -11 -10 -10 -9 -9 -9 -8 -8 -7 -7 --------- Run | Yrd Mat Min Mat Min Exi Min Mat Fac Low Distress Signals 3 | . . . 2 . . . . 1 . Communications Jammed . | . . . . . . . . . . Distress Signals . | . . . . . . . . . . Times Spotted 72 | . 5 . 18 4 . 3 2 27 13 Peak Tracking Total 12 | . 4 . 6 2 . 3 2 12 9 Tactical Retreats 1 | . . . 1 . . . . . . Traps | -11 -10 -10 -9 -9 -9 -8 -8 -7 -7 ------- Run | Yrd Mat Min Mat Min Exi Min Mat Fac Low Traps Triggered 3 | . . . 1 . . . 1 1 . Indirectly . | . . . . . . . . . . Trap Hack Attempts . | . . . . . . . . . . Triggered . | . . . . . . . . . . Disarmed . | . . . . . . . . . . Reprogrammed . | . . . . . . . . . . Reused 2 | . . . . . . . 1 1 . Traps Reconfigurated 6 | . . . . . . . 1 5 . Traps Extracted . | . . . . . . . . . . Installed . | . . . . . . . . . . Triggered 2 | . . . . . . . 1 1 . Machines | -11 -10 -10 -9 -9 -9 -8 -8 -7 -7 ---------- Run | Yrd Mat Min Mat Min Exi Min Mat Fac Low Machines Disabled 2 | . . . 1 . . . . . 1 Max in Single Turn 1 | . . . 1 . . . . . 1 Machines Repaired . | . . . . . . . . . . Machines Dismantled . | . . . . . . . . . . Machines Sabotaged . | . . . . . . . . . . Overloaded Fab Kills . | . . . . . . . . . . Hacking | -11 -10 -10 -9 -9 -9 -8 -8 -7 -7 --------- Run | Yrd Mat Min Mat Min Exi Min Mat Fac Low Machines Accessed 10 | . 1 . 2 . 2 . 3 2 . Terminals 8 | . 1 . 2 . . . 3 2 . Fabricators . | . . . . . . . . . . Repair Stations . | . . . . . . . . . . Recycling Units . | . . . . . . . . . . Scanalyzers . | . . . . . . . . . . Garrison Access . | . . . . . . . . . . Total Hacks 52 | . 2 . 5 . 32 . 5 8 . Successful 43 | . 1 . 3 . 32 . 2 5 . Failed 9 | . 1 . 2 . . . 3 3 . Catastrophic 2 | . . . . . . . 2 . . Database Lockouts . | . . . . . . . . . . Manual 15 | . 2 . 3 . 1 . 5 4 . Terminals 20 | . 2 . 5 . . . 5 8 . Fabricators . | . . . . . . . . . . Repair Stations . | . . . . . . . . . . Recycling Units . | . . . . . . . . . . Scanalyzers . | . . . . . . . . . . Garrison Access . | . . . . . . . . . . Terminal Hacks 43 | . 1 . 3 . 32 . 2 5 . Record 33 | . . . . . 32 . . 1 . Part Schematic 4 | . . . 1 . . . 1 2 . Branch Access Points 2 | . . . 1 . . . . 1 . Fabricator Index 1 | . . . . . . . 1 . . Unreport Threat 1 | . . . 1 . . . . . . Patrol Status 1 | . 1 . . . . . . . . Hauler Manifests 1 | . . . . . . . . 1 . Fabricator Hacks . | . . . . . . . . . . Repair Station Hacks . | . . . . . . . . . . Recycling Unit Hacks . | . . . . . . . . . . Scanalyzer . | . . . . . . . . . . Garrison Access Hacks . | . . . . . . . . . . Unauthorized Hacks . | . . . . . . . . . . Terminals . | . . . . . . . . . . Fabricators . | . . . . . . . . . . Repair Stations . | . . . . . . . . . . Recycling Units . | . . . . . . . . . . Scanalyzers . | . . . . . . . . . . Garrison Access . | . . . . . . . . . . Data Cores Recovered . | . . . . . . . . . . Used . | . . . . . . . . . . Hacking Detections 6 | . . . 1 . . . 3 2 . Full Trace Events 1 | . . . . . . . . 1 . Feedback Events . | . . . . . . . . . . Feedback Blocked . | . . . . . . . . . . Robot Schematics Acquired . | . . . . . . . . . . Robots Built . | . . . . . . . . . . Authchips . | . . . . . . . . . . Time . | . . . . . . . . . . Total Robot Build Rating . | . . . . . . . . . . Part Schematics Acquired 4 | . . . 1 . . . 1 2 . Parts Built . | . . . . . . . . . . Authchips . | . . . . . . . . . . Time . | . . . . . . . . . . Total Part Build Rating . | . . . . . . . . . . Parts Repaired . | . . . . . . . . . . Time . | . . . . . . . . . . Parts Recycled . | . . . . . . . . . . Recycled Matter . | . . . . . . . . . . Retrieved Matter . | . . . . . . . . . . Retrieved Components . | . . . . . . . . . . Parts Scanalyzed . | . . . . . . . . . . Part Schematics Acquired . | . . . . . . . . . . Parts Damaged . | . . . . . . . . . . Bothacking | -11 -10 -10 -9 -9 -9 -8 -8 -7 -7 ------------ Run | Yrd Mat Min Mat Min Exi Min Mat Fac Low Used RIF Installer . | . . . . . . . . . . Robots Hacked . | . . . . . . . . . . Non-combat . | . . . . . . . . . . Combat . | . . . . . . . . . . Robot Hacks Applied . | . . . . . . . . . . Relay Couplers Released . | . . . . . . . . . . Fabnet Peak Effective % . | . . . . . . . . . . Robots Rewired 1 | . . . . . . . . . 1 Allies Hacked . | . . . . . . . . . . Hacks Repelled . | . . . . . . . . . . Allies | -11 -10 -10 -9 -9 -9 -8 -8 -7 -7 -------- Run | Yrd Mat Min Mat Min Exi Min Mat Fac Low Total Allies 1 | . . . . . . . . . 1 Largest Group 1 | . . . . . . . . . 1 Highest-Rated Group 16 | . . . . . . . . . 16 Highest-Rated Ally 16 | . . . . . . . . . 16 Total Orders . | . . . . . . . . . . Ally Attacks . | . . . . . . . . . . Total Damage . | . . . . . . . . . . Kills . | . . . . . . . . . . Allies Corrupted . | . . . . . . . . . . Allies Melted . | . . . . . . . . . . Intel | -11 -10 -10 -9 -9 -9 -8 -8 -7 -7 ------- Run | Yrd Mat Min Mat Min Exi Min Mat Fac Low Robot Analysis Total . | . . . . . . . . . . Derelict Logs Recovered . | . . . . . . . . . . Drone Launches . | . . . . . . . . . . Drone Recoveries . | . . . . . . . . . . Exploration | -11 -10 -10 -9 -9 -9 -8 -8 -7 -7 ------------- Run | Yrd Mat Min Mat Min Exi Min Mat Fac Low Turns Passed 4809 | 63 80 113 564 345 1211 309 447 1342 335 Spaces Moved 2663 | 53 54 124 301 159 652 225 325 628 142 Core 731 | 4 . . . 74 652 1 . . . Treads 937 | . . . 235 85 . . 35 510 72 Legs . | . . . . . . . . . . Wheels 995 | 49 54 124 66 . . 224 290 118 70 Hover . | . . . . . . . . . . Flight . | . . . . . . . . . . Fastest Speed 50 | 50 90 90 90 150 150 90 90 110 125 Average Speed 148 | 87 90 90 144 155 185 97 110 163 172 Slowest Speed 490 | 100 90 90 160 160 250 250 490 250 250 Overloaded Moves . | . . . . . . . . . . Propulsion Burnouts . | . . . . . . . . . . Robots Hopped . | . . . . . . . . . . Cave-ins Triggered . | . . . . . . . . . . Time Travels 1 | . . . . . 1 . . . . Exploration Rate (%) 31 | 3 10 46 36 30 91 35 25 21 14 Regions Visited 9 Branch Regions 5 Pre-discovered Areas 2 | . . . . 1 1 . . . . Known Exits Taken 2 | . . . 1 . . . . 1 . Unknown Exits Taken 7 | 1 1 1 . 1 1 1 1 . . Scrap Searched 2 | . . . . . . 2 . . . Spaces Dug 2 | . . . . . . . 2 . . Terrain Destroyed 158 | . . . . . . 12 2 106 38 Melee 2 | . . . . . . . 2 . . Projectile . | . . . . . . . . . . AOE 156 | . . . . . . 12 . 106 38 Terrain Rammed . | . . . . . . . . . . Walls Destroyed . | . . . . . . . . . . Machines Disabled . | . . . . . . . . . . Actions | -11 -10 -10 -9 -9 -9 -8 -8 -7 -7 --------- Run | Yrd Mat Min Mat Min Exi Min Mat Fac Low Total 3259 | 67 65 125 381 210 653 313 408 832 205 Wait 269 | . . . 26 20 . 69 52 94 8 Move 2654 | 52 53 123 300 158 651 224 324 627 142 Hop . | . . . . . . . . . . Pick Up 50 | 9 2 1 6 1 . 6 11 14 . Fast Attach 23 | 3 . . 4 . 1 3 7 5 . Attach 36 | 3 . . 1 3 1 2 . 11 15 Detach 3 | . . . . . . 1 . 2 . Swap 23 | . . . 9 1 . 2 5 6 . Drop 29 | . . 1 10 . . 4 7 7 . Fire 131 | . 10 . 25 10 . 2 . 60 24 Melee 27 | . . . . 17 . . 2 6 2 Ram . | . . . . . . . . . . Kick . | . . . . . . . . . . Crush . | . . . . . . . . . . Escape Stasis . | . . . . . . . . . . Rewire 14 | . . . . . . . . . 14 Trap . | . . . . . . . . . . Miscellaneous . | . . . . . . . . . . Route ------- -11/Scrapyard -10/Materials -10/Mines -9/Materials -9/Mines -9/Exiles (discovered 2 exits: [*Min x2]) -8/Mines -8/Materials -7/Factory (discovered 3 exits: Sto / *Low x2) -7/Lower Caves History --------- Turn | Location | Event 22 | -11/Scrapyard | Discovered new exit (range 15) 64 | -11/Scrapyard | Entered Materials 70 | -10/Materials | Discovered new exit (range 16) 144 | -10/Materials | Entered Mines 146 | -10/Mines | YI-UF0 nonchalantly dropped a Grenade Launcher on the ground 250 | -10/Mines | Discovered new exit (range 6) 257 | -10/Mines | Entered Materials 257 | -9/Materials | Evolved 2 slots: Utility x2 364 | -9/Materials | Build established: Mutant 750 | -9/Materials | Identified exit to Mines 810 | -9/Materials | Build established: Scavenger-Mutant 821 | -9/Materials | Entered Mines 822 | -9/Mines | Assembled infested the area 874 | -9/Mines | Met a Derelict bent on vengeance 924 | -9/Mines | Core integrity fell below 50% 946 | -9/Mines | Lost 7 parts (1p2n2u2w) 1054 | -9/Mines | Core integrity fell below 20% 1082 | -9/Mines | Lost 3 parts (2n1u) 1084 | -9/Mines | Learned location of Storage (-7) 1160 | -9/Mines | Deemed a non-threat by the Exiles lab entrance 1160 | -9/Mines | Discovered new exit (range 5) 1166 | -9/Mines | Entered Exiles 1180 | -9/Exiles | Build established: Mutant 1190 | -9/Exiles | Discovered new exit (range 15) 1214 | -9/Exiles | Met 8R-AWN 1232 | -9/Exiles | Met EX-HEX 1292 | -9/Exiles | Met EX-DEC 1341 | -9/Exiles | Visited The Gauntlet 1550 | -9/Exiles | Learned location of Zion (-7) 1594 | -9/Exiles | Discovered new exit (range 14) 1741 | -9/Exiles | Met EX-BIN 1771 | -9/Exiles | Aligned with FarCom system 1773 | -9/Exiles | Given EX-Vault access code 1853 | -9/Exiles | Opened EX-Vault 1863 | -9/Exiles | Found Prototype Device 1863 | -9/Exiles | Identified Trap Reconfigurator 1869 | -9/Exiles | Found Prototype Device 1869 | -9/Exiles | Identified Chronowheel 1869 | -9/Exiles | Activated Chronowheel 1869 | -9/Exiles | Spacetime reconverged on an earlier point 1927 | -9/Exiles | Warned to stay clear of 0b10 Research branches 2377 | -9/Exiles | Left Exiles lab with Trap Reconfigurator 2377 | -9/Exiles | Entered Mines 2678 | -8/Mines | Discovered new exit (range 10) 2686 | -8/Mines | Entered Materials 2686 | -8/Materials | Evolved 2 slots: Propulsion x1, Utility x1 3024 | -8/Materials | Discovered new exit (range 13) 3133 | -8/Materials | Entered Factory 3133 | -7/Factory | Evolved 2 slots: Propulsion x1, Utility x1 3672 | -7/Factory | Identified exit to Storage 3672 | -7/Factory | Identified exit to Lower Caves 4259 | -7/Factory | Lost 8 parts (4p1n2u1w) 4308 | -7/Factory | Lost 4 parts (1n2u1w) 4475 | -7/Factory | Entered Lower Caves 4564 | -7/Lower Caves | Attracted the attention of an 0b10 outpost 4595 | -7/Lower Caves | System corruption reached 10% 4605 | -7/Lower Caves | Core integrity fell below 50% 4641 | -7/Lower Caves | Lost 14 parts (1p3n5u5w) 4747 | -7/Lower Caves | Core integrity fell below 20% 4795 | -7/Lower Caves | Lost 3 parts (1p1n1u) 4810 | -7/Lower Caves | Destroyed by G-50 Soldier with Heavy Laser Last Messages --------------- 2|0HWYBG&JB6L|MWZTT0KJ9IYZY9GT8#O, System corrupted: Wave Gun failed to cycle. Lgt. Deuterium Engine destroyed. Critical hit (Burn: +37). Arm. Treads destroyed. Matter Filter destroyed. G-47 Trooper suffers critical hit (Burn). G-47 Trooper heat spikes uncontrollably. G-47 Trooper heat short circuits Imp. Heat Sink. System corrupted: Matter fused (-6). G-47 Trooper overheating. G-47 Trooper heat spikes uncontrollably. Critical hit (Burn: +37). G-47 Trooper heat damages core (-12). Lgt. Nuclear Core melted. Broken Imp. Heat Sink fries itself beyond repair. Critical hit (Burn: +37). System corrupted: Heat flow error (+170). Critical hit (Burn: +37). Map ----- +----------------------------------------------------+ | ?????????????????????????????????????????????????? | | ?????????????????????????????????????????????????? | | ?????????????????????????????????????????????????? | | ?????????????????????????????????????????????????? | | ?????????????????????????????????????????????????? | | ?????????????????????????????????????????????????? | | ?????????????????????????????????????????????????? | | ?????????????????????????????????????????????????? | | ?????????????????????????????????????????????????? | | ?????????????????????????????????????????????????? | | ?????????????????????????????????????????????????? | | ?????????????????????????????????????????????????? | | ?????????????????????????????????????????????????? | | ?????????????????????????????????????????????????? | | ?????????????????????????????????????????????????? | | ??????????????????????????????????###????????????? | | ??????????????????????????????????# #?####??????? | | ???????????????????????##?????????# ## ##?????? | | ?????????????????????### ##????##?# ##????? | | ?????????????????????# #???# ### ##???? | | ?????????????????????# #???# ### ##?## | | ?????????????????????# #?### #### ### ## | | ?????????????????????# #? #?######## | | ??????????????????????# #?# #????#### ## | | ??????????????????????# ### #????## ## | | ???????????????????????# @ #?#### # # | | ???????????????????????### ### ### ## # ## | | ?????????????????????????## #### ## | | ??????????????????????????# ggg ## " | | ??????????????????????????# ## = # ## # ## | | ??????????????????????????##### [% # ##? | | ??????????????????????????# ## # #?? | | ??????????????????????????# # # #?? | | ?????????????????????????## ### # #?? | | ???????????? ???????????# ### "" #?? | | ??????????? ???????## ### #""""# #?? | | ??????????? ###### ##### ####### ##? | | ??????????? ##??## ## | | ??????????? ####### ## ## # | | ??????????? ### %##?## ##?#### # | | ??????????# ####=#?## #????## # | | ??????????# ### #???## ## | | ????????????????# ### ##??# #? | | ????????????????????????# ##?# #? | | ????????????????????????##### #?# #? | | ????????????????????????????## ### #? | | ?????????????????????????????# ##? | | ?????????????????????????????## ##?? | | ??????????????????????????????# ###??? | | ??????????????????????????????# ### ##????? | +----------------------------------------------------+ Best States ------------- Heat Dissipation 38 Energy Generation 14 Energy Capacity 415 Matter Stores 300 Matter Capacity 400 Sight Range 20 Robot Scan Range 14 Terrain Scan Density 110 Armor Coverage 225 Melee Speed Boost 20 Evasion (%) 42 Recoil Reduction 4 Matter Filtering 30 Offensive Hacking 10 Item Schematics ----------------- Imp. Treads | -9/Materials | Hacked Rocket Launcher | -8/Materials | Hacked Chainsword | -7/Factory | Hacked Hacking Suite | -7/Factory | Hacked Robot Schematics ------------------ None Fabricated ------------ Nothing Alien Tech Used ----------------- None Achievements -------------- Use The Force Challenges ------------ None Game ------ Seed StorageSwarmNukerbomber Manual? 0 Play Time 00:51:52 Cumulative 29.4 hours Start 2024.07.07 @ 12:39:00 End 2024.07.07 @ 13:30:30 Sessions 1 Manual Loads 0 Difficulty Rogue Special Mode None Game No. 30 Rogue 30 Adventurer 0 Explorer 0 Win Type - Total 0 Types 0/0/0/0/0/0/0/0/0 Lore% 23 Gallery% 32 Achievement% 24 Wizard Run 0 Options --------- Layout 1 ASCII 0 Keyboard 0 Movement Numpad Keybinds 0 Fullscreen 1 Font 24/Smallcaps Map View 50x35 Zoom Use 0% Tactical HUD 0 Map Filters NONE Filters NONE Steam 1 RUN: ec13c0b5-d78a-407a-817c-63603913732c